[Event "Polish University-ch Teams 2024"]
[Site "Lublin"]
[Date "2024.02.24"]
[Round "4.16"]
[White "Leskiewicz, Ignacy"]
[Black "Golenia, Wojciech"]
[Result "0-1"]
[ECO "A13"]
[WhiteElo "2180"]
[BlackElo "2212"]
[Annotator "RC"]
[PlyCount "72"]
[EventDate "2024.02.22"]
[EventType "team-tourn"]
[EventCountry "POL"]
[SourceTitle "playchess.com"]
[Source "ChessBase"]
[SourceQuality "1"]
[TimeControl "900+5"]

1. Nf3 {[%emt 0:00:03]} Nf6 {[%emt 0:00:03]} 2. b3 {[%emt 0:00:02]} e6 {[%emt 0:00:07]} 3. Bb2 {[%emt 0:00:02]} b6 {[%emt 0:00:04]} 4. e3 {[%emt 0:00:15]} Bb7 {[%emt 0:00:04]} 5. c4 {[%emt 0:00:03]} d5 {[%emt 0:00:10]} 6. Nc3 {[%emt 0:00:09]} Nbd7 {[%emt 0:01:19]} 7. Rc1 {[%emt 0:00:52]} a6 {[%emt 0:00:38]} 8. cxd5 {[%emt 0:01:29]} exd5 {[%emt 0:00:23]} 9. Bd3 {[%emt 0:00:47]} c5 {[%emt 0:02:24]} 10. O-O {[%emt 0:00:57]} Bd6 {[%emt 0:00:58]} 11. Bb1 {[%emt 0:00:24]} O-O {[%emt 0:00:44]} 12. d4 {[%emt 0:00:19]} Rc8 {[%emt 0:00:35]} 13. dxc5 {[%emt 0:01:44]} bxc5 {[%emt 0:00:15]} 14. Na4 {[%emt 0:02:47]} Re8 {[%emt 0:02:51]} 15. Bf5 {[%emt 0:03:10]} Rc7 {[%emt 0:02:54]} 16. Qd3 {[%emt 0:01:19]} g6 {[%emt 0:01:12]} 17. Bxd7 {[%emt 0:00:15]} Nxd7 {[%emt 0:00:05]} 18. Qc3 {[%emt 0:00:40]} f6 {[%emt 0:00:07]} 19. Rfd1 {[%emt 0:00:24]} Qe7 {[%emt 0:00:06]} 20. Ba3 {[%emt 0:00:19]} Qe6 {[%emt 0:00:31]} 21. Qa5 {[%emt 0:00:32]} d4 {[%emt 0:00:36]} 22. Nxd4 {[%emt 0:00:07]} Qg4 {[%emt 0:00:16]} 23. f3 {[%emt 0:00:06]} Qh4 {[%emt 0:00:07]} 24. Nxc5 {[%emt 0:00:10]} Qxh2+ {[%emt 0:00:20]} 25. Kf1 {[%emt 0:00:02]} Bg3 {[%emt 0:00:10]} 26. Nxb7 {[%emt 0:00:09]} Qh1+ {[%emt 0:00:02]} 27. Ke2 {[%emt 0:00:01]} Qxg2+ {[%emt 0:00:03]} 28. Kd3 {[%emt 0:00:02]} Ne5+ {[%emt 0:00:05]} 29. Qxe5 {[%emt 0:00:10]} Bxe5 {[%emt 0:00:02]} 30. Rxc7 {[%emt 0:00:07]} Bxd4 {[%emt 0:00:07]} 31. Kxd4 {[%emt 0:00:07]} Qxa2 {[%emt 0:00:08]} 32. Nd6 {[%emt 0:00:06]} Rd8 {[%emt 0:00:05]} 33. Kc4 {[%emt 0:00:05]} Qc2+ {[%emt 0:00:03]} 34. Kb4 {[%emt 0:00:02]} Qxc7 {[%emt 0:00:04]} 35. Ka4 {[%emt 0:00:07]} Qc6+ {[%emt 0:00:02]} 36. Kb4 {[%emt 0:00:02]} Rxd6 {[%emt 0:00:02]} 0-1

[Event "Polish University-ch Teams 2024"]
[Site "Lublin"]
[Date "2024.02.24"]
[Round "4.17"]
[White "Babiarz, Arkadiusz"]
[Black "Parol, Pola"]
[Result "1-0"]
[ECO "B50"]
[WhiteElo "2159"]
[BlackElo "2030"]
[Annotator "RC"]
[PlyCount "89"]
[EventDate "2024.02.22"]
[EventType "team-tourn"]
[EventCountry "POL"]
[SourceTitle "playchess.com"]
[Source "ChessBase"]
[SourceQuality "1"]
[TimeControl "900+5"]

{[%evp 0,89,39,28,53,51,103,30,23,-6,0,-52,3,-3,-20,-20,-20,-55,-55,2,-20,-73,-63,-58,-62,-88,-69,-126,-138,-124,-105,-113,-112,-121,-54,-45,-51,-50,-50,-55,-27,-62,-41,-31,0,-5,5,3,3,4,-3,-32,-34,-121,-48,-55,-34,-34,-10,-38,0,-22,21,23,98,16,16,50,32,40,86,78,115,106,119,94,77,77,79,151,195,167,200,137,186,111,930,1190,29999,894,29993,29994]} 1. e4 {[%emt 0:00:01]} c5 {[%emt 0:00:00]} 2. Nf3 {[%emt 0:00:02]} d6 {[%emt 0:00:01]} 3. c3 {[%emt 0:00:00]} Nf6 {[%emt 0:00:22]} 4. h3 {[%emt 0:00:02]} Nc6 {[%emt 0:03:25]} 5. Bd3 {[%emt 0:00:03]} d5 {[%emt 0:01:01]} 6. e5 {[%emt 0:00:02]} c4 {[%emt 0:00:01]} 7. Bc2 {[%emt 0:01:35]} Nd7 {[%emt 0:00:05]} 8. Qe2 {[%emt 0:00:53]} Qc7 {[%emt 0:00:47]} 9. e6 {[%emt 0:00:14]} fxe6 {[%emt 0:00:02]} 10. Qxe6 {[%emt 0:00:31]} Nf6 {[%emt 0:00:02]} 11. Qe2 {[%emt 0:00:04]} e5 {[%emt 0:00:48]} 12. O-O {[%emt 0:00:46]} Bd6 {[%emt 0:00:04]} 13. d3 {[%emt 0:00:45]} cxd3 {[%emt 0:00:19]} 14. Bxd3 {[%emt 0:00:02]} O-O {[%emt 0:00:10]} 15. Bc2 {[%emt 0:00:16]} e4 {[%emt 0:00:18]} 16. Nd4 {[%emt 0:00:04]} Be5 {[%emt 0:01:18]} 17. Be3 {[%emt 0:02:25]} Kh8 {[%emt 0:01:12]} 18. Na3 {[%emt 0:01:12]} a6 {[%emt 0:00:05]} 19. Rac1 {[%emt 0:00:24]} b5 {[%emt 0:00:44]} 20. Bb1 {[%emt 0:01:00]} Bd7 {[%emt 0:00:08]} 21. Nac2 {[%emt 0:00:04]} Qc8 {[%emt 0:00:13]} 22. Nxc6 {[%emt 0:00:06]} Bxc6 {[%emt 0:00:12]} 23. Nd4 {[%emt 0:00:06]} Bd7 {[%emt 0:00:04]} 24. f4 {[%emt 0:00:18]} Bd6 {[%emt 0:00:30]} 25. f5 {[%emt 0:00:10]} Qe8 {[%emt 0:00:28]} 26. Bf4 {[%emt 0:01:03]} Bc5 {[%emt 0:00:49]} 27. Kh1 {[%emt 0:00:06]} Nh5 {[%emt 0:00:22]} 28. Bh2 {[%emt 0:00:13]} Nf6 {[%emt 0:00:38]} 29. g4 {[%emt 0:00:26]} Rc8 {[%emt 0:01:02]} 30. Bc2 {[%emt 0:01:09]} Qe7 {[%emt 0:00:23]} 31. Bb3 {[%emt 0:00:42]} Bd6 {[%emt 0:00:01]} 32. Rcd1 {[%emt 0:00:08]} Bxh2 {[%emt 0:00:02]} 33. Qxh2 {[%emt 0:00:01]} Qc5 {[%emt 0:01:00]} 34. Ne2 {[%emt 0:00:45]} Qe3 {[%emt 0:00:27]} 35. Nf4 {[%emt 0:00:21]} Bc6 {[%emt 0:00:04]} 36. g5 {[%emt 0:00:25]} Nd7 {[%emt 0:00:17]} 37. Ne6 {[%emt 0:00:12]} Rfe8 {[%emt 0:00:04]} 38. Bxd5 {[%emt 0:00:08]} Bxd5 {[%emt 0:00:07]} 39. Rxd5 {[%emt 0:00:01]} Nb6 {[%emt 0:00:01]} 40. Rd4 {[%emt 0:00:20]} Nc4 {[%emt 0:00:07]} 41. Rd7 {[%emt 0:00:12]} Rg8 {[%emt 0:00:02]} 42. g6 {[%emt 0:00:43]} h6 {[%emt 0:00:14]} 43. f6 {[%emt 0:00:19]} gxf6 {[%emt 0:00:03]} 44. g7+ {[%emt 0:00:08]} Kh7 {[%emt 0:00:01]} 45. Nf8+ {[%emt 0:00:01]} 1-0

[Event "Polish University-ch Teams 2024"]
[Site "Lublin"]
[Date "2024.02.24"]
[Round "4.18"]
[White "Kaczmarska, Joanna"]
[Black "Giefert, Sara"]
[Result "1-0"]
[ECO "A05"]
[WhiteElo "1870"]
[BlackElo "1704"]
[Annotator "NA RC"]
[PlyCount "81"]
[EventDate "2024.02.22"]
[EventType "team-tourn"]
[EventCountry "POL"]
[SourceTitle "playchess.com"]
[Source "ChessBase"]
[SourceQuality "1"]
[TimeControl "900+5"]

1. Nf3 {[%emt 0:00:01]} Nf6 {[%emt 0:00:01]} 2. g3 {[%emt 0:00:01]} d6 {[%emt 0:00:01]} 3. d3 {[%emt 0:00:03]} g6 {[%emt 0:00:02]} 4. Bg2 {[%emt 0:00:01]} Bg7 {[%emt 0:00:01]} 5. O-O {[%emt 0:00:01]} O-O {[%emt 0:00:02]} 6. Nbd2 {[%emt 0:00:01]} e5 {[%emt 0:00:03]} 7. e4 {[%emt 0:00:02]} Nbd7 {[%emt 0:00:27]} 8. Nh4 {[%emt 0:02:47]} c6 {[%emt 0:00:29]} 9. Qe1 {[%emt 0:00:19]} Nh5 {[%emt 0:01:00]} 10. f4 {[%emt 0:02:15]} f5 {[%emt 0:00:49]} 11. exf5 {[%emt 0:00:35]} gxf5 {[%emt 0:00:03]} 12. Bf3 {[%emt 0:00:24]} Qe8 {[%emt 0:00:49]} 13. Nc4 {[%emt 0:01:41]} Nxf4 {[%emt 0:06:08]} 14. gxf4 {[%emt 0:00:40]} Qe6 {[%emt 0:00:07]} 15. Ne3 {[%emt 0:03:47]} e4 {[%emt 0:00:46]} 16. Bg2 {[%emt 0:02:28]} d5 {[%emt 0:00:27]} 17. Kh1 {[%emt 0:00:21]} Kh8 {[%emt 0:00:23]} 18. Nexf5 {[%emt 0:00:28]} Rxf5 {[%emt 0:01:27]} 19. Bh3 {[%emt 0:00:02]} Qh6 {[%emt 0:00:34]} 20. Bxf5 {[%emt 0:00:08]} Bf6 {[%emt 0:00:47]} 21. Ng2 {[%emt 0:00:12]} Nc5 {[%emt 0:00:35]} 22. dxe4 {[%emt 0:00:06]} Nxe4 {[%emt 0:00:22]} 23. Bxe4 {[%emt 0:00:03]} dxe4 {[%emt 0:00:02]} 24. f5 {[%emt 0:00:24]} Qg7 {[%emt 0:00:38]} 25. Qxe4 {[%emt 0:00:05]} Bd7 {[%emt 0:00:04]} 26. Bd2 {[%emt 0:00:10]} Re8 {[%emt 0:00:02]} 27. Qd3 {[%emt 0:00:01]} Bxb2 {[%emt 0:00:35]} 28. Rab1 {[%emt 0:00:05]} Be5 {[%emt 0:00:02]} 29. Rxb7 {[%emt 0:00:08]} Re7 {[%emt 0:00:16]} 30. Bf4 {[%emt 0:00:09]} Bf6 {[%emt 0:00:09]} 31. Bd6 {[%emt 0:00:02]} Re8 {[%emt 0:00:11]} 32. Bc5 {[%emt 0:00:03]} Rd8 {[%emt 0:00:03]} 33. Rxa7 {[%emt 0:00:02]} Be5 {[%emt 0:00:13]} 34. Qf3 {[%emt 0:00:09]} Qh6 {[%emt 0:00:04]} 35. h3 {[%emt 0:00:02]} Bc8 {[%emt 0:00:08]} 36. Qe3 {[%emt 0:00:04]} Qf6 {[%emt 0:00:03]} 37. Re1 {[%emt 0:00:05]} Re8 {[%emt 0:00:05]} 38. Be7 {[%emt 0:00:05]} Rxe7 {[%emt 0:00:06]} 39. Rxe7 {[%emt 0:00:02]} Qxe7 {[%emt 0:00:01]} 40. Qxe5+ {[%emt 0:00:00]} Qxe5 {[%emt 0:00:01]} 41. Rxe5 {[%emt 0:00:01]} 1-0

[Event "Polish University-ch Teams 2024"]
[Site "Lublin"]
[Date "2024.02.24"]
[Round "4.19"]
[White "Zerebiec, Maurycy"]
[Black "Snihur, Piotr"]
[Result "1/2-1/2"]
[ECO "A25"]
[WhiteElo "1996"]
[BlackElo "2278"]
[Annotator "RC"]
[PlyCount "116"]
[EventDate "2024.02.22"]
[EventType "team-tourn"]
[EventCountry "POL"]
[SourceTitle "playchess.com"]
[Source "ChessBase"]
[SourceQuality "1"]
[TimeControl "900+5"]

1. c4 {[%emt 0:00:01]} e5 {[%emt 0:00:15]} 2. Nc3 {[%emt 0:00:02]} Nf6 {[%emt 0:00:06]} 3. e4 {[%emt 0:00:01]} Bc5 {[%emt 0:00:25]} 4. g3 {[%emt 0:00:01]} Nc6 {[%emt 0:00:06]} 5. Bg2 {[%emt 0:00:02]} O-O {[%emt 0:00:05]} 6. h3 {[%emt 0:00:01]} a6 {[%emt 0:00:18]} 7. Nge2 {[%emt 0:00:02]} d6 {[%emt 0:00:04]} 8. O-O {[%emt 0:00:04]} Rb8 {[%emt 0:00:47]} 9. a4 {[%emt 0:00:03]} Nd4 {[%emt 0:01:21]} 10. Rb1 {[%emt 0:00:10]} c6 {[%emt 0:00:42]} 11. b4 {[%emt 0:00:20]} Ba7 {[%emt 0:00:01]} 12. b5 {[%emt 0:00:10]} Bd7 {[%emt 0:00:14]} 13. Nxd4 {[%emt 0:01:23]} Bxd4 {[%emt 0:00:32]} 14. Ne2 {[%emt 0:00:06]} Bc5 {[%emt 0:01:49]} 15. d4 {[%emt 0:00:13]} exd4 {[%emt 0:00:03]} 16. Nxd4 {[%emt 0:00:02]} Re8 {[%emt 0:00:05]} 17. Re1 {[%emt 0:00:26]} Qc8 {[%emt 0:00:52]} 18. Kh2 {[%emt 0:00:35]} axb5 {[%emt 0:02:34]} 19. axb5 {[%emt 0:00:04]} Be6 {[%emt 0:00:40]} 20. Qd3 {[%emt 0:02:26]} Nd7 {[%emt 0:00:02]} 21. f4 {[%emt 0:00:09]} Nb6 {[%emt 0:01:12]} 22. Nxe6 {[%emt 0:00:12]} Qxe6 {[%emt 0:00:01]} 23. Bf1 {[%emt 0:01:09]} Ra8 {[%emt 0:00:35]} 24. e5 {[%emt 0:01:00]} d5 {[%emt 0:03:14]} 25. cxd5 {[%emt 0:00:45]} Qxd5 {[%emt 0:00:03]} 26. Qxd5 {[%emt 0:00:17]} Nxd5 {[%emt 0:00:01]} 27. bxc6 {[%emt 0:00:09]} bxc6 {[%emt 0:00:00]} 28. Bg2 {[%emt 0:00:07]} Ra2 {[%emt 0:00:06]} 29. Rb2 {[%emt 0:00:04]} Rea8 {[%emt 0:00:25]} 30. Ree2 {[%emt 0:00:16]} Rxb2 {[%emt 0:00:11]} 31. Bxb2 {[%emt 0:00:02]} Ra2 {[%emt 0:00:18]} 32. Bxd5 {[%emt 0:00:12]} cxd5 {[%emt 0:00:01]} 33. Rc2 {[%emt 0:00:01]} h5 {[%emt 0:00:16]} 34. Rxc5 {[%emt 0:00:10]} Rxb2+ {[%emt 0:00:02]} 35. Kg1 {[%emt 0:00:01]} Rd2 {[%emt 0:00:02]} 36. Rc8+ {[%emt 0:00:15]} Kh7 {[%emt 0:00:01]} 37. Rd8 {[%emt 0:00:05]} Kg6 {[%emt 0:00:15]} 38. Rd7 {[%emt 0:00:21]} f6 {[%emt 0:00:16]} 39. e6 {[%emt 0:00:08]} Re2 {[%emt 0:00:02]} 40. Rxd5 {[%emt 0:00:02]} Re4 {[%emt 0:00:17]} 41. f5+ {[%emt 0:00:57]} Kg5 {[%emt 0:00:01]} 42. Kf2 {[%emt 0:00:01]} g6 {[%emt 0:00:04]} 43. fxg6+ {[%emt 0:03:55]} Kxg6 {[%emt 0:00:02]} 44. Rd6 {[%emt 0:00:03]} Kf5 {[%emt 0:00:08]} 45. Kf3 {[%emt 0:00:44]} Rxe6 {[%emt 0:00:07]} 46. Rxe6 {[%emt 0:00:03]} Kxe6 {[%emt 0:00:01]} 47. Ke4 {[%emt 0:00:01]} Ke7 {[%emt 0:00:10]} 48. Kf5 {[%emt 0:00:03]} Kf7 {[%emt 0:00:01]} 49. h4 {[%emt 0:00:32]} Kg7 {[%emt 0:00:00]} 50. Ke6 {[%emt 0:00:02]} Kg6 {[%emt 0:00:01]} 51. Ke7 {[%emt 0:00:13]} Kg7 {[%emt 0:00:16]} 52. Kd7 {[%emt 0:00:06]} Kh7 {[%emt 0:00:02]} 53. Kd6 {[%emt 0:00:06]} Kh6 {[%emt 0:00:02]} 54. Kd5 {[%emt 0:00:06]} Kg7 {[%emt 0:00:02]} 55. Kd6 {[%emt 0:00:20]} Kh6 {[%emt 0:00:01]} 56. Ke7 {[%emt 0:00:03]} Kg7 {[%emt 0:00:01]} 57. Ke8 {[%emt 0:00:04]} Kg8 {[%emt 0:00:03]} 58. Kd7 {[%emt 0:00:10]} Kh7 {[%emt 0:00:14]} 1/2-1/2

[Event "Polish University-ch Teams 2024"]
[Site "Lublin"]
[Date "2024.02.24"]
[Round "4.20"]
[White "Sliwicka, Alicja"]
[Black "Jankowiak, Tomasz"]
[Result "1-0"]
[ECO "B12"]
[WhiteElo "2309"]
[BlackElo "2158"]
[Annotator "TA"]
[PlyCount "53"]
[EventDate "2024.02.22"]
[EventType "team-tourn"]
[EventCountry "POL"]
[SourceTitle "playchess.com"]
[Source "ChessBase"]
[SourceQuality "1"]
[TimeControl "900+5"]

{[%evp 12,53,18,16,7,5,35,11,12,14,21,18,34,44,49,30,28,0,68,82,83,62,79,62,69,50,137,137,237,241,412,417,484,450,376,277,277,285,697,674,29989,29990,29992,29993]} 1. e4 {[%emt 0:00:01]} c6 {[%emt 0:00:05]} 2. d4 {[%emt 0:00:02]} d5 {[%emt 0:00:01]} 3. e5 {[%emt 0:00:01]} Bf5 {[%emt 0:00:01]} 4. h4 {[%emt 0:00:01]} h5 {[%emt 0:00:08]} 5. Bd3 {[%emt 0:00:02]} Bxd3 {[%emt 0:00:04]} 6. Qxd3 {[%emt 0:00:02]} e6 {[%emt 0:00:13]} 7. Nf3 {[%emt 0:00:03]} Qa5+ {[%emt 0:00:15]} 8. Nc3 {[%emt 0:00:02]} Nh6 {[%emt 0:00:44]} 9. O-O {[%emt 0:00:13]} Nf5 {[%emt 0:00:13] The position is equal.} 10. Ne2 {[%emt 0:00:23]} Be7 {[%emt 0:00:35]} 11. Bg5 {[%emt 0:00:02]} Qa6 {[%emt 0:00:21]} 12. Qd2 {[%emt 0:00:17]} Bxg5 {[%emt 0:00:19]} 13. hxg5 {[%emt 0:00:03][%cal Og5g6] Hoping for g6!} g6 {[%emt 0:00:23][%cal Bg7g6,Bg6f5][%mdl 32]} 14. Ng3 {[%emt 0:00:32]} Nd7 {[%emt 0:02:02]} ({Black should play} 14... Nxg3 $11 15. fxg3 c5) 15. Nxf5 $14 {[%emt 0:00:20]} gxf5 {[%emt 0:00:02]} 16. b3 {[%emt 0:02:05]} Nf8 {[%emt 0:00:10]} 17. Rfc1 {[%emt 0:00:21]} Ng6 {[%emt 0:00:16]} 18. c4 {[%emt 0:00:03][%cal Bc2c4,Bc4c5][%mdl 32]} O-O-O {[%emt 0:00:55] [#]} (18... dxc4 $14 19. bxc4 O-O) 19. c5 $1 $16 {[%emt 0:00:26]} h4 {[%emt 0:00:27] [#]} (19... Kd7 $16) 20. a4 $1 $18 {[%emt 0:00:14]} Rd7 $2 {[%emt 0:01:29]} (20... h3) 21. b4 {[%emt 0:00:52]} Kb8 {[%emt 0:02:27] [#]} 22. b5 $1 {[%emt 0:02:18][%mdl 512]} cxb5 {[%emt 0:00:02]} 23. axb5 {[%emt 0:00:02]} Qxb5 {[%emt 0:00:02]} 24. Rcb1 {[%emt 0:00:01]} Qc4 {[%emt 0:00:27]} (24... Qc6 25. Qa2 Kc8) 25. Rb4 {[%emt 0:00:13]} Nxe5 {[%emt 0:00:47]} 26. Nxe5 {[%emt 0:00:20]} Qxb4 {[%emt 0:01:03]} 27. Nxd7+ {[%emt 0:00:07] Weighted Error Value: White=0.12 (very precise) /Black=0.99.  Mistake:       	---       	Black=5      Inaccurate:     	White=1     	Black=2      OK:         	White=5     	Black=5      Best:        	White=2     	---        Strong:       	White=2     	---} 1-0

[Event "Polish University-ch Teams 2024"]
[Site "Lublin"]
[Date "2024.02.24"]
[Round "4.21"]
[White "Turek, Michal"]
[Black "Brzezinski, Mateusz"]
[Result "0-1"]
[ECO "B33"]
[WhiteElo "1750"]
[BlackElo "2176"]
[Annotator "RC"]
[PlyCount "70"]
[EventDate "2024.02.22"]
[EventType "team-tourn"]
[EventCountry "POL"]
[SourceTitle "playchess.com"]
[Source "ChessBase"]
[SourceQuality "1"]
[TimeControl "900+5"]

1. e4 {[%emt 0:00:03]} c5 {[%emt 0:00:00]} 2. Nf3 {[%emt 0:00:04]} Nc6 {[%emt 0:00:02]} 3. d4 {[%emt 0:00:01]} cxd4 {[%emt 0:00:01]} 4. Nxd4 {[%emt 0:00:02]} Nf6 {[%emt 0:00:01]} 5. Nc3 {[%emt 0:00:01]} e5 {[%emt 0:00:01]} 6. Ndb5 {[%emt 0:00:03]} d6 {[%emt 0:00:01]} 7. Nd5 {[%emt 0:00:02]} Nxd5 {[%emt 0:00:01]} 8. exd5 {[%emt 0:00:02]} Ne7 {[%emt 0:00:01]} 9. c4 {[%emt 0:00:06]} Ng6 {[%emt 0:00:09]} 10. Qa4 {[%emt 0:00:16]} Bd7 {[%emt 0:00:01]} 11. Qb4 {[%emt 0:00:03]} Qb8 {[%emt 0:00:01]} 12. h4 {[%emt 0:00:16]} h5 {[%emt 0:00:04]} 13. g3 {[%emt 0:00:38]} a6 {[%emt 0:00:02]} 14. Nc3 {[%emt 0:00:16]} Be7 {[%emt 0:01:13]} 15. Be3 {[%emt 0:00:51]} f5 {[%emt 0:00:35]} 16. Bd3 {[%emt 0:00:59]} O-O {[%emt 0:00:37]} 17. Bg5 {[%emt 0:00:58]} Qd8 {[%emt 0:01:17]} 18. Bxe7 {[%emt 0:00:41]} Qxe7 {[%emt 0:00:05]} 19. Be2 {[%emt 0:00:48]} e4 {[%emt 0:00:06]} 20. Qb6 {[%emt 0:00:54]} f4 {[%emt 0:01:12]} 21. O-O-O {[%emt 0:01:10]} f3 {[%emt 0:02:14]} 22. Bf1 {[%emt 0:00:03]} Bf5 {[%emt 0:00:37]} 23. Re1 {[%emt 0:01:57]} Rac8 {[%emt 0:00:22]} 24. b3 {[%emt 0:00:11]} Qf6 {[%emt 0:00:27]} 25. Re3 {[%emt 0:01:22]} Rfe8 {[%emt 0:00:45]} 26. Bh3 {[%emt 0:01:18]} Ne5 {[%emt 0:01:09]} 27. Bxf5 {[%emt 0:01:21]} Qxf5 {[%emt 0:00:06]} 28. Nd1 {[%emt 0:00:36]} Ng4 {[%emt 0:00:33]} 29. Rc3 {[%emt 0:00:16]} Qf6 {[%emt 0:00:53]} 30. Kc2 {[%emt 0:00:51]} e3 {[%emt 0:00:22]} 31. fxe3 {[%emt 0:00:45]} Qe5 {[%emt 0:00:26]} 32. Qd4 {[%emt 0:00:43]} Qxg3 {[%emt 0:00:02]} 33. Kc1 {[%emt 0:00:04]} Qg2 {[%emt 0:00:16]} 34. Re1 {[%emt 0:00:06]} f2 {[%emt 0:00:05]} 35. Nxf2 {[%emt 0:00:03]} Qxf2 {[%emt 0:00:03]} 0-1

[Event "Polish University-ch Teams 2024"]
[Site "Lublin"]
[Date "2024.02.24"]
[Round "4.22"]
[White "Drozdowski, Konrad"]
[Black "Malek, Szymon"]
[Result "1-0"]
[ECO "E04"]
[WhiteElo "2117"]
[BlackElo "1604"]
[Annotator "ChessBase"]
[PlyCount "53"]
[EventDate "2024.02.22"]
[EventType "team-tourn"]
[EventCountry "POL"]
[SourceTitle "playchess.com"]
[Source "ChessBase"]
[SourceQuality "1"]
[TimeControl "900+5"]

1. Nf3 {[%emt 0:00:02]} Nf6 {[%emt 0:00:02]} 2. g3 {[%emt 0:00:01]} e6 {[%emt 0:00:05]} 3. Bg2 {[%emt 0:00:05]} d5 {[%emt 0:00:01]} 4. O-O {[%emt 0:00:03]} c5 {[%emt 0:00:02]} 5. d4 {[%emt 0:00:05]} Nc6 {[%emt 0:00:03]} 6. c4 {[%emt 0:00:02]} dxc4 {[%emt 0:00:23]} 7. Ne5 {[%emt 0:00:14]} Nxe5 {[%emt 0:01:41]} 8. dxe5 {[%emt 0:00:02]} Nd7 {[%emt 0:00:54]} 9. Qa4 {[%emt 0:01:48]} Be7 {[%emt 0:00:20]} 10. Nd2 {[%emt 0:00:17]} O-O {[%emt 0:00:39]} 11. Nxc4 {[%emt 0:00:04]} a6 {[%emt 0:02:55]} 12. Qc2 {[%emt 0:00:19]} Rb8 {[%emt 0:00:10]} 13. Rd1 {[%emt 0:00:28]} Qc7 {[%emt 0:01:06]} 14. f4 {[%emt 0:00:09]} b5 {[%emt 0:00:21]} 15. Nd6 {[%emt 0:00:04]} Rd8 {[%emt 0:00:51]} 16. Be3 {[%emt 0:00:18]} c4 {[%emt 0:00:35]} 17. a4 {[%emt 0:01:44]} Nc5 {[%emt 0:00:31]} 18. axb5 {[%emt 0:00:19]} Bxd6 {[%emt 0:00:02]} 19. exd6 {[%emt 0:00:19]} Rxd6 {[%emt 0:00:26]} 20. Qxc4 {[%emt 0:00:33]} Rxb5 {[%emt 0:03:54]} 21. b4 {[%emt 0:00:07]} Rxd1+ {[%emt 0:01:25]} 22. Rxd1 {[%emt 0:00:01]} h6 {[%emt 0:00:08]} 23. bxc5 {[%emt 0:00:08]} Bb7 {[%emt 0:00:11]} 24. Bxb7 {[%emt 0:00:23]} Qxb7 {[%emt 0:00:02]} 25. c6 {[%emt 0:00:52]} Qc7 {[%emt 0:00:14]} 26. Qc3 {[%emt 0:00:23]} Ra5 {[%emt 0:00:08]} 27. Rd7 {[%emt 0:00:11]} 1-0

[Event "Polish University-ch Teams 2024"]
[Site "Lublin"]
[Date "2024.02.24"]
[Round "4.23"]
[White "Zahorski, Bartosz"]
[Black "Sujkowski, Dominik"]
[Result "1/2-1/2"]
[ECO "B33"]
[WhiteElo "1396"]
[BlackElo "1562"]
[Annotator "NA RC"]
[PlyCount "126"]
[EventDate "2024.02.22"]
[EventType "team-tourn"]
[EventCountry "POL"]
[SourceTitle "playchess.com"]
[Source "ChessBase"]
[SourceQuality "1"]
[TimeControl "900+5"]

1. e4 {[%emt 0:00:02]} c5 {[%emt 0:00:04]} 2. Nf3 {[%emt 0:00:01]} Nc6 {[%emt 0:00:01]} 3. d4 {[%emt 0:00:01]} cxd4 {[%emt 0:00:01]} 4. Nxd4 {[%emt 0:00:01]} Nf6 {[%emt 0:00:02]} 5. Nc3 {[%emt 0:00:03]} e5 {[%emt 0:00:01]} 6. Ndb5 {[%emt 0:00:10]} d6 {[%emt 0:00:02]} 7. Nd5 {[%emt 0:00:02]} Nxd5 {[%emt 0:00:02]} 8. exd5 {[%emt 0:00:02]} Nb8 {[%emt 0:00:02]} 9. c4 {[%emt 0:00:07]} Be7 {[%emt 0:00:18]} 10. Bd3 {[%emt 0:00:07]} a6 {[%emt 0:00:10]} 11. Nc3 {[%emt 0:00:01]} O-O {[%emt 0:00:07]} 12. O-O {[%emt 0:00:02]} Nd7 {[%emt 0:00:59]} 13. Be3 {[%emt 0:00:20]} f5 {[%emt 0:00:09]} 14. f3 {[%emt 0:00:11]} Bg5 {[%emt 0:00:29]} 15. Qd2 {[%emt 0:00:30]} Bxe3+ {[%emt 0:01:42]} 16. Qxe3 {[%emt 0:00:01]} Nc5 {[%emt 0:01:22]} 17. b4 {[%emt 0:00:36]} Nxd3 {[%emt 0:01:19]} 18. Qxd3 {[%emt 0:00:01]} Qb6+ {[%emt 0:00:01]} 19. Kh1 {[%emt 0:00:28]} Qxb4 {[%emt 0:00:41]} 20. Rab1 {[%emt 0:00:09]} Qc5 {[%emt 0:00:59]} 21. Na4 {[%emt 0:00:25]} Qc7 {[%emt 0:00:09]} 22. c5 {[%emt 0:01:19]} f4 {[%emt 0:01:13]} 23. cxd6 {[%emt 0:01:16]} Qxd6 {[%emt 0:00:01]} 24. Rb6 {[%emt 0:00:34]} Qd8 {[%emt 0:01:00]} 25. d6 {[%emt 0:00:26]} Bd7 {[%emt 0:00:27]} 26. Qb3+ {[%emt 0:00:25]} Kh8 {[%emt 0:00:09]} 27. Nc5 {[%emt 0:01:06]} Bb5 {[%emt 0:00:23]} 28. Ne6 {[%emt 0:01:43]} Qxb6 {[%emt 0:00:02]} 29. Nxf8 {[%emt 0:00:15]} Rxf8 {[%emt 0:00:02]} 30. a4 {[%emt 0:00:02]} Qxd6 {[%emt 0:01:15]} 31. axb5 {[%emt 0:00:03]} Rd8 {[%emt 0:00:34]} 32. bxa6 {[%emt 0:00:19]} bxa6 {[%emt 0:00:22]} 33. h3 {[%emt 0:00:12]} Qd3 {[%emt 0:00:56]} 34. Qxd3 {[%emt 0:01:37]} Rxd3 {[%emt 0:00:01]} 35. Rc1 {[%emt 0:00:15]} h6 {[%emt 0:00:12]} 36. Rc8+ {[%emt 0:00:03]} Kh7 {[%emt 0:00:01]} 37. Ra8 {[%emt 0:00:11]} Rd6 {[%emt 0:00:14]} 38. Kh2 {[%emt 0:00:36]} Kg6 {[%emt 0:00:07]} 39. h4 {[%emt 0:00:14]} Kf5 {[%emt 0:00:41]} 40. Kh3 {[%emt 0:00:38]} h5 {[%emt 0:00:36]} 41. Rf8+ {[%emt 0:01:10]} Rf6 {[%emt 0:00:01]} 42. Rg8 {[%emt 0:00:18]} g6 {[%emt 0:00:01]} 43. Ra8 {[%emt 0:00:01]} e4 {[%emt 0:00:13]} 44. Re8 {[%emt 0:00:30]} e3 {[%emt 0:00:05]} 45. g4+ {[%emt 0:00:08]} fxg3 {[%emt 0:00:08]} 46. Rxe3 {[%emt 0:00:21]} Kf4 {[%emt 0:00:10]} 47. Re4+ {[%emt 0:00:53]} Kxf3 {[%emt 0:00:05]} 48. Re6 {[%emt 0:00:01]} Rf4 {[%emt 0:00:32]} 49. Rxa6 {[%emt 0:00:16]} Rg4 {[%emt 0:00:30]} 50. Ra3+ {[%emt 0:00:16]} Kf4 {[%emt 0:00:05]} 51. Ra4+ {[%emt 0:00:00]} Kf5 {[%emt 0:00:03]} 52. Rxg4 {[%emt 0:00:29]} hxg4+ {[%emt 0:00:01]} 53. Kxg3 {[%emt 0:00:01]} g5 {[%emt 0:00:19]} 54. hxg5 {[%emt 0:00:05]} Kxg5 {[%emt 0:00:02]} 55. Kg2 {[%emt 0:00:03]} Kf4 {[%emt 0:00:01]} 56. Kf2 {[%emt 0:00:01]} g3+ {[%emt 0:00:00]} 57. Kg2 {[%emt 0:00:01]} Kg4 {[%emt 0:00:01]} 58. Kg1 {[%emt 0:00:01]} Kh3 {[%emt 0:00:01]} 59. Kh1 {[%emt 0:00:00]} Kg4 {[%emt 0:00:00]} 60. Kg2 {[%emt 0:00:00]} Kh4 {[%emt 0:00:00]} 61. Kg1 {[%emt 0:00:00]} Kh3 {[%emt 0:00:00]} 62. Kh1 {[%emt 0:00:00]} g2+ {[%emt 0:00:00]} 63. Kg1 {[%emt 0:00:00]} Kg3 {[%emt 0:00:00]} 1/2-1/2